fUST/lending_fUST_20250924
["ID","MTS","AMOUNT","RATE_DAILY","PERIOD"]
[387221782,1758660632261,-451.19238256,0.00019178,2]
[387221783,1758660632270,-480.0,0.00019178,2]
[387221784,1758660632280,-481.00994577,0.00019178,2]
[387221785,1758660632289,-480.0,0.00019178,2]
[387221786,1758660632299,-480.0,0.00019178,2]
[387221787,1758660632308,-480.0,0.00019178,2]
[387221788,1758660632317,-448.35202918,0.00019178,2]
[387221790,1758660632330,-480.0,0.00019178,2]
[387221792,1758660632339,-480.0,0.00019178,2]
[387221794,1758660632349,-480.0,0.00019178,2]
[387221796,1758660632358,-480.0,0.00019178,2]
[387221798,1758660632368,-480.0,0.00019178,2]
[387221800,1758660632377,-480.0,0.00019178,2]
[387221802,1758660632387,-488.95771258,0.00019178,2]
[387221804,1758660632396,-490.86609039,0.00019178,2]
[387221806,1758660632406,-480.0,0.00019178,2]
[387221808,1758660632415,-480.0,0.00019178,2]
[387221810,1758660632425,-480.0,0.00019178,2]
[387221812,1758660632435,-480.0,0.00019178,2]
[387221814,1758660632445,-123.18988009,0.00019178,2]
[387221816,1758660632457,-356.81011991,0.00019178,2]
[387221818,1758660632467,-480.0,0.00019178,2]
[387221820,1758660632476,-480.0,0.00019178,2]
[387221821,1758660632485,-480.0,0.00019178,2]
[387221822,1758660632495,-480.0,0.00019178,2]
[387221823,1758660632505,-480.0,0.00019178,2]
[387221824,1758660632514,-480.0,0.00019178,2]
[387221826,1758660632523,-480.0,0.00019178,2]
[387221828,1758660632533,-487.9785182,0.00019178,2]
[387221830,1758660632543,-480.0,0.00019178,2]
[387221832,1758660632552,-480.0,0.00019178,2]
[387221834,1758660632562,-480.0,0.00019178,2]
[387221836,1758660632572,-480.0,0.00019178,2]
[387221838,1758660632583,-529.9,0.00019178,2]
[387221839,1758660632593,-480.0,0.00019178,2]
[387221840,1758660632603,-480.0,0.00019178,2]
[387221841,1758660632613,-531.01140285,0.00019178,2]
[387221842,1758660632623,-480.0,0.00019178,2]
[387221844,1758660632633,-480.0,0.00019178,2]
[387221846,1758660632643,-480.0,0.00019178,2]
[387221848,1758660632652,-489.86235032,0.00019178,2]
[387221849,1758660632662,-480.0,0.00019178,2]
[387221851,1758660632672,-480.0,0.00019178,2]
[387221853,1758660632681,-480.0,0.00019178,2]
[387221870,1758660632829,-480.0,0.00019178,2]
[387221872,1758660632839,-480.0,0.00019178,2]
[387221874,1758660632849,-480.0,0.00019178,2]
[387221876,1758660632859,-480.0,0.00019178,2]
[387221878,1758660632868,-480.0,0.00019178,2]
[387221880,1758660632878,-480.0,0.00019178,2]
[387221882,1758660632887,-480.0,0.00019178,2]
[387221884,1758660632896,-194.1959914,0.00019178,2]
[387221886,1758660632906,-480.0,0.00019178,2]
[387221888,1758660632915,-480.0,0.00019178,2]
[387221890,1758660632927,-480.0,0.00019178,2]
[387221892,1758660632937,-480.73581186,0.00019178,2]
[387221894,1758660632946,-480.0,0.00019178,2]
[387221896,1758660632956,-482.54017041,0.00019178,2]
[387221898,1758660632966,-487.38600145,0.00019178,2]
[387221900,1758660632979,-480.0,0.00019178,2]
[387221902,1758660632988,-481.03890012,0.00019178,2]
[387221904,1758660632998,-480.0,0.00019178,2]
[387221906,1758660633007,-480.0,0.00019178,2]
[387221907,1758660633016,-497.71947924,0.00019178,2]
[387221908,1758660633026,-480.0,0.00019178,2]
[387221909,1758660633036,-480.0,0.00019178,2]
[387221910,1758660633046,-480.0,0.00019178,2]
[387221911,1758660633056,-480.0,0.00019178,2]
[387221912,1758660633066,-480.0,0.00019178,2]
[387221913,1758660633076,-487.38707966,0.00019178,2]
[387221914,1758660633086,-480.0,0.00019178,2]
[387221915,1758660633096,-480.0,0.00019178,2]
[387221916,1758660633106,-480.0,0.00019178,2]
[387221917,1758660633116,-480.0,0.00019178,2]
[387221918,1758660633127,-480.0,0.00019178,2]
[387221919,1758660633138,-480.0,0.00019178,2]
[387221920,1758660633148,-480.0,0.00019178,2]
[387221921,1758660633158,-480.0,0.00019178,2]
[387221922,1758660633172,-480.0,0.00019178,2]
[387221923,1758660633182,-480.0,0.00019178,2]
[387221924,1758660633192,-480.0,0.00019178,2]
[387221925,1758660633202,-480.0,0.00019178,2]
[387221926,1758660633211,-480.0,0.00019178,2]
[387221927,1758660633220,-480.0,0.00019178,2]
[387221928,1758660633230,-509.01,0.00019178,2]
[387221929,1758660633241,-480.0,0.00019178,2]
[387221930,1758660633252,-480.0,0.00019178,2]
[387221931,1758660633262,-480.0,0.00019178,2]
[387221932,1758660633271,-481.77557062,0.00019178,2]
[387221933,1758660633281,-480.0,0.00019178,2]
[387221934,1758660633290,-480.0,0.00019178,2]
[387221935,1758660633300,-480.0,0.00019178,2]
[387221936,1758660633309,-480.0,0.00019178,2]
[387221937,1758660633319,-480.0,0.00019178,2]
[387221938,1758660633332,-480.0,0.00019178,2]
[387221939,1758660633342,-500.0,0.00019178,2]
[387221940,1758660633352,-500.0,0.00019178,2]
[387221941,1758660633362,-500.0,0.00019178,2]
[387221942,1758660633372,-500.0,0.00019178,2]
[387221943,1758660633382,-500.0,0.00019178,2]
[387221944,1758660633392,-480.0,0.00019178,2]
[387221945,1758660633402,-484.53084826,0.00019178,2]
[387221946,1758660633411,-480.0,0.00019178,2]
[387221947,1758660633421,-480.0,0.00019178,2]
[387221948,1758660633431,-480.0,0.00019178,2]
[387221949,1758660633442,-1000.19997361,0.00019178,2]
[387221950,1758660633451,-480.0,0.00019178,2]
[387221951,1758660633461,-480.0,0.00019178,2]
[387221952,1758660633471,-480.0,0.00019178,2]
[387221953,1758660633480,-480.0,0.00019178,2]
[387221954,1758660633489,-480.0,0.00019178,2]
[387221955,1758660633499,-480.0,0.00019178,2]
[387221956,1758660633508,-480.0,0.00019178,2]
[387221957,1758660633518,-486.92748809,0.00019178,2]
[387221958,1758660633528,-480.0,0.00019178,2]
[387221959,1758660633538,-480.0,0.00019178,2]
[387221960,1758660633547,-480.0,0.00019178,2]
[387221961,1758660633557,-480.0,0.00019178,2]
[387221962,1758660633567,-2043.19,0.00019178,2]
[387221963,1758660633577,-480.0,0.00019178,2]
[387221964,1758660633591,-508.39839995,0.00019178,2]
[387221965,1758660633601,-480.0,0.00019178,2]
[387221966,1758660633611,-1000.0,0.00019178,2]
[387221967,1758660633621,-480.0,0.00019178,2]
[387221968,1758660633631,-480.0,0.00019178,2]
[387221969,1758660633642,-480.0,0.00019178,2]
[387221970,1758660633652,-480.0,0.00019178,2]
[387221971,1758660633662,-480.0,0.00019178,2]
[387221972,1758660633671,-480.0,0.00019178,2]
[387221973,1758660633681,-480.0,0.00019178,2]
[387221974,1758660633691,-481.08281569,0.00019178,2]
[387221975,1758660633701,-166.28365457,0.00019178,2]
[387221976,1758660633711,-480.0,0.00019178,2]
[387221977,1758660633721,-480.0,0.00019178,2]
[387221978,1758660633731,-480.0,0.00019178,2]
[387221979,1758660633741,-480.0,0.00019178,2]
[387221980,1758660633751,-480.0,0.00019178,2]
[387221981,1758660633761,-480.0,0.00019178,2]
[387221982,1758660633771,-480.0,0.00019178,2]
[387221983,1758660633781,-482.7519075,0.00019178,2]
[387221984,1758660633791,-480.0,0.00019178,2]
[387221985,1758660633802,-480.0,0.00019178,2]
[387221986,1758660633813,-913.34,0.00019178,2]
[387221987,1758660633823,-480.0,0.00019178,2]
[387221988,1758660633834,-480.0,0.00019178,2]
[387221989,1758660633844,-480.0,0.00019178,2]
[387221990,1758660633854,-480.0,0.00019178,2]
[387221991,1758660633864,-480.0,0.00019178,2]
[387221992,1758660633874,-480.0,0.00019178,2]
[387221993,1758660633883,-480.0,0.00019178,2]
[387221994,1758660633895,-480.0,0.00019178,2]
[387221995,1758660633904,-480.0,0.00019178,2]
[387221996,1758660633914,-480.0,0.00019178,2]
[387221997,1758660633924,-480.0,0.00019178,2]
[387221998,1758660633933,-618.63,0.00019178,2]
[387221999,1758660633944,-480.0,0.00019178,2]
[387222000,1758660633954,-480.0,0.00019178,2]
[387222001,1758660633963,-480.0,0.00019178,2]
[387222002,1758660633972,-480.0,0.00019178,2]
[387222003,1758660633982,-480.0,0.00019178,2]
[387222004,1758660633991,-480.0,0.00019178,2]
[387222005,1758660634001,-480.0,0.00019178,2]
[387222006,1758660634010,-480.0,0.00019178,2]
[387222007,1758660634019,-480.0,0.00019178,2]
[387222008,1758660634028,-511.32,0.00019178,2]
[387222009,1758660634038,-480.0,0.00019178,2]
[387222010,1758660634048,-480.0,0.00019451,2]
[387222011,1758660634057,-305.82614442,0.00019451,2]
[387222012,1758660634126,-174.17385558,0.00019451,2]
[387222013,1758660634136,-500.0,0.00019451,2]
[387222014,1758660634145,-480.0,0.00019452,2]
[387222015,1758660634155,-480.0,0.00019452,2]
[387222016,1758660634164,-480.0,0.00019452,2]
[387222017,1758660634178,-480.0,0.00019452,2]
[387222018,1758660634188,-480.0,0.00019452,2]
[387222019,1758660634197,-480.0,0.00019452,2]
[387222020,1758660634206,-480.0,0.00019452,2]
[387222021,1758660634217,-2043.19,0.00019452,2]
[387222022,1758660634227,-480.0,0.00019452,2]
[387222023,1758660634236,-152.47162898,0.00019452,2]
[387222024,1758660634246,-913.34,0.00019452,2]
[387222025,1758660634256,-480.0,0.00019452,2]
[387222026,1758660634266,-480.0,0.00019452,2]
[387222027,1758660634276,-480.0,0.00019452,2]
[387222028,1758660634286,-480.0,0.00019452,2]
[387222029,1758660634296,-480.0,0.00019452,2]
[387222030,1758660634306,-480.0,0.00019452,2]
[387222031,1758660634315,-480.0,0.00019452,2]
[387222032,1758660634325,-480.0,0.00019452,2]
[387222033,1758660634335,-480.0,0.00019452,2]
[387222034,1758660634345,-618.63,0.00019452,2]
[387222035,1758660634354,-480.0,0.00019452,2]
[387222036,1758660634364,-480.0,0.00019452,2]
[387222037,1758660634373,-480.0,0.00019452,2]
[387222038,1758660634382,-480.0,0.00019452,2]
[387222039,1758660634392,-480.0,0.00019452,2]
[387222040,1758660634402,-480.0,0.00019452,2]
[387222041,1758660634411,-480.0,0.00019452,2]
[387222042,1758660634420,-511.32,0.00019452,2]
[387222043,1758660634429,-296.37451544,0.00019452,2]
[387222044,1758660634441,-320.38719969,0.00019452,2]
[387222045,1758660634450,-346.20568504,0.00019725,2]
[387222095,1758660640064,-480.0,0.00019178,2]
[387222097,1758660640074,-480.0,0.00019178,2]
[387222099,1758660640084,-480.0,0.00019452,2]
[387222101,1758660640094,-480.0,0.00019452,2]
[387222103,1758660640104,-153.79431496,0.00019725,2]
[387222106,1758660640114,-161.30382523,0.00019725,2]
[387222110,1758660640123,-199.08865144,0.00019725,2]
[387222113,1758660640133,-500.0,0.00019725,2]
[387222116,1758660640143,-500.0,0.00019725,2]
[387222118,1758660640152,-500.0,0.00019725,2]
[387222120,1758660640162,-500.0,0.00019725,2]
[387222122,1758660640174,-500.0,0.00019725,2]
[387222124,1758660640183,-480.0,0.00019726,2]
[387222126,1758660640192,-480.0,0.00019726,2]
[387222128,1758660640202,-2043.19,0.00019726,2]
[387222130,1758660640211,-480.0,0.00019726,2]
[387222132,1758660640221,-913.34,0.00019726,2]
[387222134,1758660640231,-480.0,0.00019726,2]
[387222136,1758660640240,-480.0,0.00019726,2]
[387222138,1758660640251,-480.0,0.00019726,2]
[387222140,1758660640260,-480.0,0.00019726,2]
[387222142,1758660640269,-399.4,0.00019726,2]
[387222144,1758660640278,-480.0,0.00019726,2]
[387222145,1758660640287,-480.0,0.00019726,2]
[387222147,1758660640297,-480.0,0.00019726,2]
[387222150,1758660640306,-480.0,0.00019726,2]
[387222151,1758660640315,-618.63,0.00019726,2]
[387222153,1758660640324,-480.0,0.00019726,2]
[387222155,1758660640334,-480.0,0.00019726,2]
[387222157,1758660640344,-480.0,0.00019726,2]
[387222159,1758660640353,-480.0,0.00019726,2]
[387222161,1758660640364,-549.95,0.00019726,2]
[387222164,1758660640373,-480.0,0.00019726,2]
[387222165,1758660640383,-480.0,0.00019726,2]
[387222167,1758660640392,-511.32,0.00019726,2]
[387222169,1758660640402,-480.0,0.00019726,2]
[387222171,1758660640411,-3616.44454304,0.000199,2]
[387222173,1758660640420,-500.0,0.00019999,2]
[387222175,1758660640429,-410.0,0.0002,2]
[387222177,1758660640438,-125.79163959,0.0002,2]
[387222180,1758660640450,-282.35711214,0.0002,2]
[387222182,1758660640466,-71.85124827,0.0002,2]
[387222185,1758660640475,-480.0,0.0002,2]
[387222187,1758660640485,-2043.19,0.0002,2]
[387222188,1758660640494,-480.0,0.0002,2]
[387222189,1758660640503,-913.34,0.0002,2]
[387222190,1758660640513,-480.0,0.0002,2]
[387222191,1758660640522,-290.11875173,0.0002,2]
[387222192,1758660640533,-189.88124827,0.0002,2]
[387222193,1758660640542,-480.0,0.0002,2]
[387222194,1758660640551,-447.86158856,0.0002,2]
[387222447,1758660643157,-32.13841144,0.0002,2]
[387222449,1758660643170,-480.0,0.0002,2]
[387222452,1758660643182,-480.0,0.0002,2]
[387222454,1758660643193,-480.0,0.0002,2]
[387222456,1758660643205,-480.0,0.0002,2]
[387222458,1758660643217,-618.63,0.0002,2]
[387222461,1758660643229,-480.0,0.0002,2]
[387222463,1758660643242,-480.0,0.0002,2]
[387222465,1758660643255,-480.0,0.0002,2]
[387222467,1758660643264,-569.70295961,0.0002,2]
[387222469,1758660643276,-480.0,0.0002,2]
[387222471,1758660643285,-988.33865329,0.0002,2]
[387222473,1758660643297,-2687.66134671,0.0002,2]
[387222475,1758660643308,-480.0,0.0002,2]
[387222477,1758660643317,-511.32,0.0002,2]
[387222479,1758660643328,-480.0,0.0002,2]
[387222481,1758660643339,-233.58652103,0.0002009,2]
[387222483,1758660643350,-160.0,0.0002009,2]
[387222493,1758660643443,-160.0,0.0002009,2]
[387222496,1758660643475,-160.0,0.0002009,2]
[387222498,1758660643484,-417.15472785,0.0002009,2]
[387222500,1758660643496,-160.0,0.0002009,2]
[387222502,1758660643506,-160.0,0.0002009,2]
[387222504,1758660643516,-480.0,0.00020273,2]
[387222506,1758660643528,-480.0,0.00020273,2]
[387222508,1758660643539,-2043.19,0.00020273,2]
[387222510,1758660643551,-480.0,0.00020273,2]
[387222512,1758660643563,-913.34,0.00020273,2]
[387222514,1758660643573,-480.0,0.00020273,2]
[387222516,1758660643585,-480.0,0.00020273,2]
[387222518,1758660643596,-480.0,0.00020273,2]
[387222520,1758660643607,-480.0,0.00020273,2]
[387222522,1758660643617,-480.0,0.00020273,2]
[387222524,1758660643628,-480.0,0.00020273,2]
[387222526,1758660643638,-480.0,0.00020273,2]
[387222528,1758660643649,-480.0,0.00020273,2]
[387222530,1758660643660,-480.0,0.00020273,2]
[387222533,1758660643672,-480.0,0.00020273,2]
[387222535,1758660643683,-480.0,0.00020273,2]
[387222537,1758660643693,-480.0,0.00020273,2]
[387222538,1758660643703,-480.0,0.00020273,2]
[387222540,1758660643713,-511.32,0.00020273,2]
[387222542,1758660643723,-480.0,0.00020273,2]
[387222544,1758660643733,-2305.69,0.00020498,2]
[387222546,1758660643745,-265.13808883,0.000205,2]
[387222757,1758660646158,-234.86191117,0.000205,2]
[387222759,1758660646170,-849.68,0.00020537,3]
[387222761,1758660646186,-311.33151904,0.00020547,2]
[387222764,1758660646196,-543.43982323,0.00020547,2]
[387222765,1758660646206,-2043.19,0.00020547,2]
[387222767,1758660646215,-480.0,0.00020547,2]
[387222769,1758660646225,-913.34,0.00020547,2]
[387222771,1758660646237,-521.27591969,0.00020547,2]
[387222773,1758660646247,-480.0,0.00020547,2]
[387222775,1758660646258,-480.0,0.00020547,2]
[387222777,1758660646267,-480.0,0.00020547,2]
[387222779,1758660646276,-480.0,0.00020547,2]
[387222781,1758660646286,-480.0,0.00020547,2]
[387222783,1758660646295,-480.0,0.00020547,2]
[387222785,1758660646305,-480.0,0.00020547,2]
[387222787,1758660646314,-480.0,0.00020547,2]
[387222789,1758660646324,-480.0,0.00020547,2]
[387222791,1758660646334,-480.0,0.00020547,2]
[387222793,1758660646344,-410.56784958,0.00020547,2]
[387222795,1758660646356,-188.4080565,0.00020547,2]
[387222797,1758660646366,-291.5919435,0.00020547,2]
[387222799,1758660646377,-188.4080565,0.00020547,2]
[387222801,1758660646386,-511.32,0.00020547,2]
[387222803,1758660646396,-623.26707187,0.00020547,2]
[387222805,1758660646406,-352.6049288,0.0002082,2]
[387222807,1758660646416,-2043.19,0.00020821,2]
[387222809,1758660646425,-480.0,0.00020821,2]
[387222811,1758660646435,-913.34,0.00020821,2]
[387222814,1758660646444,-480.0,0.00020821,2]
[387222816,1758660646454,-480.0,0.00020821,2]
[387222818,1758660646463,-480.0,0.00020821,2]
[387222820,1758660646473,-480.0,0.00020821,2]
[387222822,1758660646482,-480.0,0.00020821,2]
[387222824,1758660646491,-480.0,0.00020821,2]
[387222826,1758660646501,-480.0,0.00020821,2]
[387222828,1758660646511,-200.62872662,0.00020821,2]
[387222830,1758660646520,-430.36566649,0.00020821,2]
[387222832,1758660646529,-480.0,0.00020821,2]
[387222833,1758660646538,-480.0,0.00020821,2]
[387222835,1758660646548,-511.32,0.00020821,2]
[387222837,1758660646556,-420.0,0.00020899,2]
[387222839,1758660646567,-160.0,0.000209,2]
[387222841,1758660646576,-358.81641632,0.00020972,2]
[387222843,1758660646588,-3257.62812667,0.00020972,2]
[387222845,1758660646598,-421.4305437,0.00021036,2]
[387222847,1758660646608,-2043.19,0.00021095,2]
[387222849,1758660646617,-480.0,0.00021095,2]
[387222851,1758660646626,-913.34,0.00021095,2]
[387222853,1758660646636,-264.13586895,0.00021095,2]
[387222855,1758660646645,-531.48776801,0.00021095,2]
[387222857,1758660646655,-480.0,0.00021095,2]
[387222859,1758660646664,-480.0,0.00021095,2]
[387222861,1758660646673,-480.0,0.00021095,2]
[387222863,1758660646683,-480.0,0.00021095,2]
[387222865,1758660646692,-389.86188981,0.00021095,2]
[387222867,1758660646702,-480.0,0.00021095,2]
[387222869,1758660646712,-229.06860569,0.00021095,2]
[387222871,1758660646721,-511.32,0.00021095,2]
[387222873,1758660646731,-2043.19,0.00021369,2]
[387222875,1758660646740,-480.0,0.00021369,2]
[387222877,1758660646749,-913.34,0.00021369,2]
[387222878,1758660646758,-480.0,0.00021369,2]
[387222880,1758660646767,-480.0,0.00021369,2]
[387222882,1758660646776,-197.0255487,0.00021369,2]
[387222884,1758660646786,-480.0,0.00021369,2]
[387222886,1758660646796,-480.0,0.00021369,2]
[387222888,1758660646806,-511.32,0.00021369,2]
[387222890,1758660646815,-260.0,0.00021448,2]
[387222892,1758660646824,-3836.66,0.00021633,10]
[387222894,1758660646834,-2043.19,0.00021643,2]
[387222896,1758660646843,-480.0,0.00021643,2]
[387222898,1758660646852,-913.34,0.00021643,2]
[387222900,1758660646861,-480.0,0.00021643,2]
[387222901,1758660646870,-480.0,0.00021643,2]
[387222903,1758660646880,-229.12964173,0.00021643,2]
[387222905,1758660646889,-480.0,0.00021643,2]
[387222907,1758660646899,-511.32,0.00021643,2]
[387222909,1758660646908,-278.49246916,0.00021917,2]
[387222911,1758660646917,-500.0,0.00021917,2]
[387222913,1758660646926,-500.0,0.00021917,2]
[387222915,1758660646936,-2043.19,0.00021917,2]
[387222917,1758660646945,-480.0,0.00021917,2]
[387222919,1758660646954,-913.34,0.00021917,2]
[387222921,1758660646964,-480.0,0.00021917,2]
[387222923,1758660646973,-480.0,0.00021917,2]
[387222925,1758660646983,-480.0,0.00021917,2]
[387222927,1758660646992,-511.32,0.00021917,2]
[387222929,1758660647002,-500.0,0.00021993,2]
[387222931,1758660647011,-360.0,0.00021996,2]
[387222933,1758660647019,-3616.44454299,0.00022044,2]
[387222934,1758660647029,-2043.19,0.00022191,2]
[387222936,1758660647038,-480.0,0.00022191,2]
[387222938,1758660647047,-913.34,0.00022191,2]
[387222940,1758660647056,-480.0,0.00022191,2]
[387222942,1758660647066,-480.0,0.00022191,2]
[387222944,1758660647075,-480.0,0.00022191,2]
[387222946,1758660647084,-511.32,0.00022191,2]
[387222948,1758660647094,-151.0,0.00022192,2]
[387222950,1758660647103,-151.0,0.00022192,2]
[387222952,1758660647112,-151.0,0.00022192,2]
[387222954,1758660647122,-151.0,0.00022192,2]
[387222956,1758660647131,-500.0,0.00022192,2]
[387222958,1758660647141,-292.54374955,0.00022192,2]
[387222960,1758660647150,-151.0,0.00022192,2]
[387222962,1758660647159,-151.0,0.00022192,2]
[387222964,1758660647169,-151.30661811,0.00022192,2]
[387222966,1758660647181,-151.2769351,0.00022192,2]
[387222968,1758660647190,-151.0,0.00022192,2]
[387222970,1758660647199,-151.0,0.00022192,2]
[387222971,1758660647208,-151.0,0.00022192,2]
[387222973,1758660647218,-151.0,0.00022192,2]
[387222975,1758660647227,-151.18199785,0.00022192,2]
[387222977,1758660647236,-151.0,0.00022192,2]
[387222979,1758660647246,-151.0,0.00022192,2]
[387222981,1758660647256,-151.0,0.00022192,2]
[387222983,1758660647265,-157.96331793,0.00022192,2]
[387222985,1758660647274,-168.0,0.00022356,7]
[387222987,1758660647283,-4611.37,0.00022362,2]
[387222989,1758660647292,-1000.0,0.00022465,2]
[387222991,1758660647301,-503.56567077,0.00022465,2]
[387222993,1758660647310,-2043.19,0.00022465,2]
[387222995,1758660647319,-480.0,0.00022465,2]
[387222997,1758660647328,-913.34,0.00022465,2]
[387222998,1758660647339,-480.0,0.00022465,2]
[387223000,1758660647349,-547.40216821,0.00022465,2]
[387223002,1758660647358,-480.0,0.00022465,2]
[387223004,1758660647367,-511.32,0.00022465,2]
[387223006,1758660647376,-151.0,0.00022466,2]
[387223008,1758660647386,-564.0,0.00022466,2]
[387223010,1758660647395,-151.0,0.00022466,2]
[387223012,1758660647404,-151.0,0.00022466,2]
[387223014,1758660647413,-151.0,0.00022466,2]
[387223016,1758660647422,-151.0,0.00022466,2]
[387223018,1758660647432,-639.34920702,0.00022511,2]
[387223020,1758660647441,-1000.0,0.00022541,2]
[387223022,1758660647450,-460.0,0.00022544,2]
[387223024,1758660647460,-168.0,0.0002257,2]
[387223026,1758660647469,-2043.19,0.00022739,2]
[387223028,1758660647478,-480.0,0.00022739,2]
[387223030,1758660647487,-913.34,0.00022739,2]
[387223032,1758660647496,-480.0,0.00022739,2]
[387223034,1758660647505,-480.0,0.00022739,2]
[387223036,1758660647515,-511.32,0.00022739,2]
[387223037,1758660647523,-198.0,0.0002274,2]
[387223039,1758660647533,-198.0,0.0002274,2]
[387223040,1758660647543,-198.0,0.0002274,2]
[387223041,1758660647552,-198.0,0.0002274,2]
[387223042,1758660647561,-587.0,0.00022776,2]
[387223043,1758660647571,-168.0,0.00022887,2]
[387223044,1758660647580,-1684.03645264,0.00022906,2]
[387223045,1758660647590,-410.0,0.00023,2]
[387223046,1758660647599,-1500.0,0.00023013,2]
[387223047,1758660647608,-2043.19,0.00023013,2]
[387223048,1758660647618,-480.0,0.00023013,2]
[387223049,1758660647627,-913.34,0.00023013,2]
[387223050,1758660647636,-429.53397118,0.00023013,2]
[387223051,1758660647646,-480.0,0.00023013,2]
[387223052,1758660647655,-511.32,0.00023013,2]
[387223054,1758660647664,-1234.08645297,0.00023089,2]
[387223056,1758660647673,-560.0,0.00023092,2]
[387223058,1758660647682,-3616.44454299,0.00023116,2]
[387223060,1758660647691,-168.0,0.00023139,2]
[387223062,1758660647701,-168.0,0.00023197,2]
[387223064,1758660647711,-2043.19,0.00023287,2]
[387223066,1758660647720,-480.0,0.00023287,2]
[387223068,1758660647729,-913.34,0.00023287,2]
[387223070,1758660647739,-645.52,0.00023287,2]
[387223072,1758660647749,-480.0,0.00023287,2]
[387223075,1758660647758,-511.32,0.00023287,2]
[387223077,1758660647767,-1633.59,0.00023287,2]
[387223079,1758660647776,-168.0,0.0002332,2]
[387223080,1758660647786,-500.0,0.0002351,2]
[387223082,1758660647795,-2000.0,0.00023561,2]
[387223085,1758660647805,-2043.19,0.00023561,2]
[387223087,1758660647815,-480.0,0.00023561,2]
[387223089,1758660647825,-913.34,0.00023561,2]
[387223091,1758660647834,-645.52,0.00023561,2]
[387223093,1758660647844,-480.0,0.00023561,2]
[387223094,1758660647854,-511.32,0.00023561,2]
[387223097,1758660647863,-168.0,0.0002361,2]
[387223098,1758660647873,-500.0,0.00023637,2]
[387223100,1758660647882,-660.0,0.0002364,2]
[387223103,1758660647891,-2043.19,0.00023835,2]
[387223104,1758660647901,-178.20029593,0.00023835,2]
[387223106,1758660647910,-913.34,0.00023835,2]
[387223109,1758660647919,-480.0,0.00023835,2]
[387223110,1758660647928,-511.32,0.00023835,2]
[387223113,1758660647938,-2000.0,0.000239,2]
[387223114,1758660647947,-922.2199514,0.0002393,2]
[387223116,1758660647957,-11963.3884734,0.0002393,2]
[387223119,1758660647966,-448.064,0.00023967,5]
[387223121,1758660647976,-506.12706572,0.00024,9]
[387223123,1758660647985,-168.0,0.00024036,2]
[387223125,1758660647994,-1387.28087207,0.00024087,2]
[387223126,1758660648003,-150.0,0.000241,5]
[387223128,1758660648013,-1000.0,0.000241,2]
[387223130,1758660648022,-513.3576406,0.00024108,2]
[387223132,1758660648032,-2043.19,0.00024109,2]
[387223135,1758660648042,-913.34,0.00024109,2]
[387223137,1758660648051,-480.0,0.00024109,2]
[387223139,1758660648060,-511.32,0.00024109,2]
[387223141,1758660648070,-220.25,0.00024177,3]